bitfinex/quotes_SOLUSD_20250326
["timestamp","ask_amount","ask_price","bid_price","bid_amount"]
[1742948002720,0.0001,143.7,143.69,114.81895515]
[1742948005109,0.0001,143.7,143.69,107.50769514]
[1742948005311,0.0001,143.7,143.69,113.42769514]
[1742948016935,0.0001,143.7,143.69,114.81876748]
[1742948020445,0.0001,143.7,143.69,114.67660591]
[1742948021846,0.0001,143.7,143.69,114.53444434]
[1742948022145,0.0001,143.7,143.69,114.81876748]
[1742948026554,0.0001,143.7,143.69,113.42769514]
[1742948029258,0.0001,143.7,143.69,81.47216157]
[1742948029463,1.5425,143.7,143.69,0.03]
[1742948031573,8.5014,143.7,143.69,0.03]
[1742948037803,6.1335,143.69,143.63,5.95]
[1742948037987,1.5517,143.68,143.63,0.03]
[1742948039510,6.9603,143.67,143.63,0.03]
[1742948040108,24.3612,143.67,143.63,0.03]
[1742948041021,6.9603,143.67,143.63,0.03]
[1742948042021,1.5517,143.68,143.63,0.17216157]
[1742948042222,1.5517,143.68,143.63,19.24829514]
[1742948042794,8.5117,143.68,143.63,0.17216157]
[1742948048509,1.5517,143.68,143.63,7.13436157]
[1742948049516,8.5116,143.68,143.63,7.13436157]
[1742948052226,8.5116,143.68,143.63,0.17216157]
[1742948052627,8.5116,143.68,143.63,7.13436157]
[1742948053833,0.063,143.69,143.65,0.14216157]
[1742948055826,7.0224,143.69,143.65,0.14216157]
[1742948061616,7.0224,143.69,143.65,0.17216157]
[1742948062331,7.0224,143.69,143.65,0.03]
[1742948073221,0.063,143.69,143.65,0.03]
[1742948091283,20.0,143.66,143.65,0.03]
[1742948093774,6.9608,143.66,143.65,0.03]
[1742948093961,26.9608,143.66,143.65,0.03]
[1742948112679,6.9603,143.67,143.65,0.03]
[1742948116586,88.7229,143.69,143.65,0.03]
[1742948117294,20.0,143.68,143.65,0.03]
[1742948117804,7.0226,143.69,143.65,0.03]
[1742948118399,20.0,143.68,143.65,0.03]
[1742948119399,6.9603,143.67,143.65,0.03]
[1742948124907,20.0,143.63,143.57,1.6665]
[1742948125092,20.0,143.62,143.56,6.3017]
[1742948125611,20.0,143.58,143.53,7.5865]
[1742948126191,20.0,143.58,143.53,1.6665]
[1742948126512,20.0,143.58,143.53,7.5865]
[1742948127690,6.9652,143.57,143.53,7.5865]
[1742948128299,6.9652,143.57,143.53,1.6665]
[1742948128503,6.9652,143.57,143.52,6.3017]
[1742948128504,24.3783,143.57,143.52,6.3017]
[1742948129508,20.0,143.55,143.52,6.3017]
[1742948129709,26.9662,143.55,143.5,0.03]
[1742948133917,26.9662,143.55,143.53,0.03]
[1742948136425,63.03134886,143.55,143.5,0.03]
[1742948136610,100.34964886,143.54,143.5,0.03]
[1742948136929,81.7,143.54,143.5,0.03]
[1742948138409,6.9671,143.53,143.5,0.03]
[1742948142431,24.385,143.53,143.5,0.03]
[1742948142806,20.0,143.51,143.5,0.03]
[1742948144428,26.9681,143.51,143.5,0.03]
[1742948144630,6.9671,143.53,143.5,0.03]
[1742948145027,17.4151,143.56,143.5,0.03]
[1742948145028,6.9662,143.55,143.5,0.03]
[1742948148535,20.0,143.53,143.5,0.03]
[1742948150353,26.9671,143.53,143.5,0.03]
[1742948152843,6.9657,143.56,143.5,0.03]
[1742948153037,6.9657,143.56,143.5,1.5425]
[1742948153440,6.9647,143.58,143.5,1.5425]
[1742948153826,6.9647,143.58,143.51,0.14216157]
[1742948156645,6.9642,143.59,143.53,6.3893]
[1742948156833,6.9642,143.59,143.53,12.3093]
[1742948157846,6.9642,143.59,143.53,19.276]
[1742948158549,24.3748,143.59,143.53,12.3093]
[1742948159430,0.063,143.57,143.53,12.3093]
[1742948160937,0.063,143.57,143.53,19.2764]
[1742948162050,0.063,143.57,143.54,0.14216157]
[1742948162229,0.063,143.57,143.56,7.10786157]
[1742948164457,0.063,143.57,143.56,0.14216157]
[1742948164641,0.063,143.57,143.55,1.6614]
[1742948164831,0.063,143.57,143.55,7.5814]
[1742948166374,0.063,143.57,143.56,0.14216157]
[1742948166537,0.063,143.57,143.56,19.21829514]
[1742948167431,0.063,143.57,143.56,26.18399514]
[1742948170467,0.063,143.57,143.56,107.48399514]
[1742948170648,0.063,143.57,143.56,113.90309514]
[1742948170843,0.063,143.57,143.56,115.29560357]
[1742948171358,0.063,143.57,143.56,113.90309514]
[1742948171565,0.063,143.57,143.56,5.92]
[1742948171764,0.063,143.57,143.55,1.6614]
[1742948171967,0.063,143.57,143.56,5.92]
[1742948173968,0.063,143.57,143.53,0.17216157]
[1742948174147,0.063,143.57,143.56,5.92]
[1742948174771,0.063,143.57,143.53,0.17216157]
[1742948174972,0.063,143.57,143.54,5.92]
[1742948178175,0.063,143.57,143.53,5.95]
[1742948178581,20.063,143.57,143.53,0.03]
[1742948179176,6.9657,143.56,143.53,0.03]
[1742948181573,24.38,143.56,143.53,0.03]
[1742948183675,6.9657,143.56,143.53,0.03]
[1742948183867,21.6273,143.57,143.53,0.03]
[1742948183868,27.0284,143.57,143.53,0.03]
[1742948184066,20.063,143.57,143.53,0.03]
[1742948185078,27.0283,143.57,143.53,0.03]
[1742948185861,44.4414,143.57,143.53,0.03]
[1742948187258,45.9847,143.57,143.53,0.03]
[1742948188774,27.0283,143.57,143.53,0.03]
[1742948190284,20.063,143.57,143.53,0.03]
[1742948190473,0.063,143.57,143.53,0.03]
[1742948191275,0.063,143.57,143.55,19.21829514]
[1742948191476,0.063,143.57,143.56,25.13829514]
[1742948192179,0.063,143.57,143.56,32.10399514]
[1742948192881,0.063,143.57,143.56,13.02786157]
[1742948193083,0.063,143.57,143.56,6.06216157]
[1742948193282,0.063,143.57,143.56,13.02786157]
[1742948193971,0.063,143.57,143.56,32.10399514]
[1742948196692,0.063,143.62,143.57,0.14216157]
[1742948196872,0.063,143.62,143.57,100.51829514]
[1742948199594,0.063,143.62,143.55,0.14216157]
[1742948200691,0.063,143.62,143.55,19.21829514]
[1742948201895,0.063,143.62,143.55,26.18399514]
[1742948203696,0.063,143.62,143.55,107.48399514]
[1742948207279,0.063,143.62,143.55,124.89949514]
[1742948209515,0.063,143.62,143.57,19.21829514]
[1742948210211,0.063,143.62,143.59,0.14216157]
[1742948210381,0.063,143.62,143.61,0.14216157]
[1742948211803,0.063,143.62,143.61,7.10546157]
[1742948215021,0.063,143.62,143.61,26.18159514]
[1742948217882,0.063,143.62,143.61,19.21829514]
[1742948219104,0.063,143.62,143.61,26.18159514]
[1742948223711,0.063,143.62,143.61,107.48159514]
[1742948223918,0.063,143.69,143.65,0.14216157]
[1742948224097,0.063,143.69,143.66,6.06216157]
[1742948225710,0.063,143.69,143.66,13.02296157]
[1742948226591,0.063,143.69,143.68,0.14216157]
[1742948226797,0.063,143.69,143.68,100.51829514]
[1742948227593,0.063,143.69,143.68,107.47819514]
[1742948230607,0.063,143.69,143.68,106.153972]
[1742948230813,0.063,143.69,143.68,114.78983279]
[1742948231711,0.063,143.69,143.68,113.39819514]
[1742948234501,0.063,143.69,143.68,113.41819514]
[1742948239213,0.063,143.69,143.68,25.01613357]
[1742948239410,0.063,143.69,143.68,32.11819514]
[1742948239798,0.063,143.69,143.68,31.97603357]
[1742948240200,0.063,143.69,143.68,32.11819514]
[1742948243130,0.063,143.69,143.65,1.39155893]
[1742948243322,0.063,143.69,143.63,5.96]
[1742948246729,0.063,143.69,143.64,0.14216157]
[1742948247211,0.063,143.69,143.63,5.96]
[1742948248220,0.063,143.69,143.64,0.14216157]
[1742948250224,0.063,143.69,143.63,5.96]
[1742948252219,20.0,143.67,143.64,5.96]
[1742948253956,6.9608,143.66,143.64,5.96]
[1742948255337,6.9608,143.66,143.62,0.03]
[1742948255540,6.9608,143.66,143.63,5.96]
[1742948255941,6.9603,143.67,143.63,5.96]
[1742948258047,24.3612,143.67,143.63,5.96]
[1742948259337,0.063,143.69,143.64,0.28432314]
[1742948259928,7.0225,143.69,143.64,0.14216157]
[1742948260135,7.0225,143.69,143.63,5.96]
[1742948261341,0.063,143.69,143.63,5.96]
[1742948262021,0.063,143.69,143.62,0.03]
[1742948262022,21.5239,143.66,143.62,0.03]
[1742948263448,28.4851,143.66,143.62,0.03]
[1742948265929,45.8872,143.66,143.62,0.03]
[1742948266124,6.0789,143.65,143.62,0.03]
[1742948268254,6.9618,143.64,143.62,0.03]
[1742948268641,26.9615,143.65,143.62,0.03]
[1742948274753,44.3649,143.65,143.62,0.03]
[1742948276640,6.961,143.66,143.62,0.03]
[1742948276842,87.8419,143.69,143.62,0.03]
[1742948277857,6.9599,143.68,143.62,0.03]
[1742948280359,24.3596,143.68,143.62,0.03]
[1742948282365,24.4226,143.68,143.62,0.03]
[1742948286155,7.0229,143.68,143.62,0.03]
[1742948286675,7.0229,143.68,143.62,6.9928]
[1742948287468,0.063,143.68,143.63,0.14216157]
[1742948288059,0.063,143.68,143.63,0.28432314]
[1742948288668,0.063,143.68,143.65,0.14216157]
[1742948288873,0.063,143.68,143.66,5.96]
[1742948290186,0.063,143.68,143.66,12.9207]
[1742948291377,0.063,143.68,143.67,0.14216157]
[1742948291975,0.063,143.68,143.67,7.10246157]
[1742948292577,0.063,143.68,143.67,27.57029479]
[1742948294052,0.063,143.68,143.67,0.28432314]
[1742948294255,0.063,143.68,143.67,0.14216157]
[1742948294976,0.063,143.68,143.67,6.10216157]
[1742948296154,0.063,143.68,143.67,106.47829514]
[1742948296980,0.063,143.68,143.67,113.43859514]
[1742948304157,0.0001,143.68,143.67,113.43859514]
[1742948304674,0.0001,143.68,143.67,113.29643357]
[1742948305567,0.0001,143.68,143.67,113.43859514]
[1742948307273,0.0001,143.68,143.67,87.54432314]
[1742948307674,0.0001,143.68,143.66,6.9606]
[1742948307872,0.0001,143.68,143.67,5.96]
[1742948308182,0.0001,143.68,143.67,6.10216157]
[1742948308369,0.0001,143.68,143.67,6.24432314]
[1742948309881,0.0001,143.68,143.67,13.20462314]
[1742948311185,0.0001,143.68,143.67,6.24432314]
[1742948311686,0.0001,143.68,143.67,13.20462314]
[1742948317165,0.0001,143.68,143.67,6.24432314]
[1742948326901,0.0001,143.68,143.66,0.03]
[1742948327203,0.0001,143.68,143.67,5.94]
[1742948328308,0.0001,143.68,143.66,0.03]
[1742948328510,0.0001,143.68,143.67,5.94]
[1742948329204,0.0001,143.68,143.67,6.22432314]
[1742948329607,0.0001,143.68,143.67,25.15829514]
[1742948329913,0.0001,143.68,143.67,107.85004901]
[1742948330214,0.0001,143.68,143.67,114.81034901]
[1742948346222,0.0001,143.68,143.67,116.38804901]
[1742948348319,0.0001,143.68,143.67,116.10372587]
[1742948348522,0.0001,143.68,143.67,116.38804901]
[1742948351420,0.0001,143.68,143.67,107.85004901]
[1742948351628,0.0001,143.68,143.67,100.233972]
[1742948351808,0.0001,143.68,143.67,106.43829514]
[1742948352011,0.0001,143.68,143.67,106.153972]
[1742948352213,0.0001,143.68,143.67,6.20432314]
[1742948355407,0.0001,143.68,143.66,0.03]
[1742948355625,0.0001,143.68,143.67,5.92]
[1742948356517,1.5103,143.67,143.66,0.03]
[1742948358530,8.4706,143.67,143.66,0.03]
[1742948363322,60.6734,143.67,143.62,0.03]
[1742948365818,6.3236,143.66,143.62,0.03]
[1742948366231,24.3647,143.65,143.62,0.03]
[1742948367244,6.9613,143.65,143.62,0.03]
[1742948368452,20.0,143.63,143.62,0.03]
[1742948371344,26.9623,143.63,143.62,0.03]
[1742948374341,6.3236,143.62,143.55,5.95]
[1742948374543,6.3236,143.62,143.55,0.03]
[1742948376024,24.3715,143.61,143.55,0.03]
[1742948382149,1.5634,143.63,143.55,18.963972]
[1742948382452,81.7,143.64,143.56,19.21829514]
[1742948382634,6.9625,143.63,143.56,19.21829514]
[1742948383357,6.9625,143.63,143.56,26.18369514]
[1742948384853,24.3647,143.65,143.56,26.18369514]
[1742948385459,24.3647,143.65,143.56,0.28432314]
[1742948388962,24.3647,143.65,143.56,25.899572]
[1742948390661,6.9613,143.65,143.58,0.28432314]
[1742948390960,6.9613,143.65,143.59,5.92]
[1742948391964,0.063,143.65,143.59,5.92]
[1742948393267,0.063,143.65,143.6,0.28432314]
[1742948395366,0.063,143.65,143.62,0.28432314]
[1742948396139,0.063,143.65,143.63,6.9623]
[1742948396344,0.063,143.65,143.64,5.92]
[1742948398343,0.063,143.65,143.64,12.8818]
[1742948398543,0.063,143.65,143.64,5.92]
[1742948406671,0.063,143.65,143.61,6.0307]
[1742948406970,0.063,143.65,143.62,5.92]
[1742948410451,0.063,143.65,143.63,19.21829514]
[1742948411276,0.063,143.65,143.62,5.92]
[1742948411607,0.063,143.65,143.61,0.28432314]
[1742948411755,0.063,143.65,143.62,5.92]
[1742948412972,0.063,143.65,143.61,0.28432314]
[1742948413172,0.063,143.65,143.62,5.92]
[1742948416465,0.063,143.65,143.62,5.95]
[1742948443290,0.063,143.65,143.63,19.21829514]
[1742948443799,0.063,143.65,143.63,25.37009514]
[1742948446106,0.063,143.65,143.64,4.17389416]
[1742948448005,0.063,143.65,143.62,0.03]
[1742948448980,7.0243,143.65,143.62,0.03]
[1742948453713,24.4277,143.65,143.62,0.03]
[1742948461319,20.0,143.63,143.62,0.03]
[1742948461627,20.0,143.63,143.56,5.92]
[1742948462108,6.9628,143.62,143.57,0.28432314]
[1742948462698,6.9618,143.64,143.57,19.21829514]
[1742948464017,0.063,143.65,143.6,0.28432314]
[1742948464018,7.0243,143.65,143.6,0.28432314]
[1742948464198,7.0243,143.65,143.61,5.92]
[1742948464798,7.0243,143.65,143.62,0.03]
[1742948470025,0.063,143.65,143.62,0.31432314]
[1742948471926,0.063,143.65,143.62,0.03]
[1742948473517,7.0243,143.65,143.62,0.03]
[1742948473821,0.063,143.65,143.62,0.31432314]
[1742948475525,0.063,143.65,143.62,7.27702314]
[1742948479022,0.063,143.65,143.62,19.24829514]
[1742948479531,0.063,143.65,143.62,26.21099514]
[1742948481135,0.063,143.65,143.62,27.60306346]
[1742948484834,0.063,143.65,143.62,108.90306346]
[1742948493934,0.063,143.65,143.62,100.54829514]
[1742948494159,0.063,143.65,143.62,100.40613357]
[1742948495547,0.063,143.65,143.63,5.92]
[1742948495750,0.063,143.65,143.62,0.03]
[1742948501445,0.063,143.65,143.62,0.31432314]
[1742948504950,0.063,143.65,143.62,0.03]
[1742948505156,0.063,143.65,143.62,5.95]
[1742948505540,0.063,143.65,143.63,0.28432314]
[1742948506551,0.063,143.65,143.64,5.92]
[1742948506748,0.063,143.65,143.62,0.03]
[1742948537781,0.063,143.65,143.62,0.31432314]
[1742948539495,0.063,143.65,143.62,7.27682314]
[1742948541577,0.063,143.65,143.64,0.28432314]
[1742948541776,0.063,143.65,143.64,19.21829514]
[1742948543314,0.063,143.65,143.64,26.18009514]
[1742948544480,0.063,143.65,143.64,0.28432314]
[1742948544685,0.063,143.65,143.64,5.92]
[1742948546683,0.063,143.65,143.63,5.92]
[1742948549093,0.063,143.65,143.63,12.8823]
[1742948551190,0.063,143.65,143.63,5.92]
[1742948551694,0.063,143.65,143.62,0.03]
[1742948551891,0.063,143.65,143.62,5.95]
[1742948563523,0.063,143.65,143.62,0.03]
[1742948563820,0.063,143.65,143.62,5.95]
[1742948565628,0.063,143.65,143.62,0.03]
[1742948567715,21.6059,143.62,143.54,0.28432314]
[1742948567924,21.6059,143.62,143.55,5.95]
[1742948569656,24.3715,143.61,143.55,5.95]
[1742948577563,24.3715,143.61,143.55,0.03]
[1742948580680,20.0,143.58,143.55,0.03]
[1742948580869,1.6387,143.57,143.55,0.03]
[1742948581180,20.0,143.56,143.53,0.03]
[1742948582985,6.9662,143.55,143.53,0.03]
[1742948583750,6.9662,143.55,143.52,0.03]
[1742948601578,20.0,143.53,143.52,0.03]
[1742948601787,26.9671,143.53,143.52,0.03]
[1742948613823,6.9671,143.53,143.52,0.03]
[1742948614121,26.9668,143.54,143.52,0.03]
[1742948616324,0.063,143.55,143.52,0.03]
[1742948616524,0.063,143.55,143.53,5.92]
[1742948619031,0.063,143.55,143.52,0.03]
[1742948622226,0.063,143.55,143.52,0.31432314]
[1742948623733,0.063,143.55,143.52,7.28172314]
[1742948629436,0.063,143.55,143.54,0.28432314]
[1742948630237,0.063,143.55,143.54,7.25092314]
[1742948632232,0.063,143.55,143.54,26.18489514]
[1742948636952,0.063,143.55,143.54,107.48489514]
[1742948638355,0.063,143.55,143.54,115.21599514]
[1742948641359,0.063,143.59,143.56,0.28432314]
[1742948641654,0.063,143.59,143.58,26.94939514]
[1742948641842,0.063,143.59,143.58,28.34165756]
[1742948642438,0.063,143.59,143.58,35.30635756]
[1742948645463,0.063,143.59,143.58,116.60635756]
[1742948654065,0.063,143.65,143.61,19.21829514]
[1742948654248,0.063,143.65,143.63,19.21829514]
[1742948654444,0.063,143.65,143.64,20.32575111]
[1742948654644,0.063,143.65,143.64,101.62565111]
[1742948654949,0.063,143.65,143.64,101.90997425]
[1742948655866,0.063,143.65,143.64,105.43831532]
[1742948656040,0.063,143.65,143.64,112.40011532]
[1742948660568,0.063,143.66,143.65,19.21829514]
[1742948660863,0.0001,143.68,143.67,19.21829514]
[1742948661054,0.0001,143.68,143.67,107.76631631]
[1742948661865,0.0001,143.7,143.69,20.28432314]
[1742948662048,0.0001,143.7,143.69,47.56869541]
[1742948663557,0.0001,143.7,143.69,128.80559541]
[1742948666275,0.0431,143.71,143.7,19.21829514]
[1742948666570,0.0431,143.71,143.7,100.45519514]
[1742948666756,0.0001,143.73,143.71,100.41209514]
[1742948666963,0.0001,143.73,143.71,101.8028189]
[1742948667970,0.0001,143.73,143.71,108.7612189]
[1742948668671,0.0001,143.73,143.72,19.21829514]
[1742948668862,0.0001,143.73,143.72,25.11829514]
[1742948670176,0.063,143.75,143.73,26.17569514]
[1742948670371,6.516,143.84,143.78,19.21829514]
[1742948670684,6.516,143.84,143.8,0.28432314]
[1742948671377,6.516,143.84,143.8,0.56864628]
[1742948671763,13.4681,143.84,143.8,0.28432314]
[1742948671956,13.4681,143.84,143.81,5.9]
[1742948678796,6.516,143.84,143.81,12.8535]
[1742948679003,1.7022,143.85,143.81,12.8535]
[1742948679189,1.7022,143.85,143.82,18.933972]
[1742948680489,1.7022,143.85,143.81,5.9]
[1742948681501,8.6539,143.85,143.81,5.9]
[1742948690087,9.87190586,143.82,143.81,5.9]
[1742948692083,9.87190586,143.83,143.81,12.8535]
[1742948692311,9.87190586,143.83,143.81,5.9]
[1742948693613,8.6539,143.85,143.81,5.9]
[1742948693614,9.87190586,143.82,143.81,5.9]
[1742948696614,16.82500586,143.82,143.75,81.2238]
[1742948696919,9.87190586,143.76,143.75,5.93]
[1742948697427,9.87190586,143.77,143.75,5.93]
[1742948698018,9.87190586,143.77,143.75,12.8865]
[1742948700306,9.87190586,143.77,143.75,5.93]
[1742948701111,9.87190586,143.76,143.75,5.93]
[1742948701312,9.87190586,143.77,143.75,5.93]
[1742948702019,9.87190586,143.77,143.75,0.03]
[1742948702211,9.87190586,143.76,143.75,5.93]
[1742948702614,9.87190586,143.77,143.75,0.03]
[1742948702822,9.87190586,143.77,143.75,5.93]
[1742948703018,6.9545,143.79,143.75,5.93]
[1742948703209,9.87190586,143.77,143.75,5.93]
[1742948703611,9.87190586,143.76,143.75,0.03]
[1742948705522,16.82790586,143.76,143.75,0.03]
[1742948706541,16.89090586,143.76,143.75,0.03]
[1742948715157,9.93490586,143.76,143.75,0.03]
[1742948715345,16.89090586,143.76,143.75,0.03]
[1742948721573,0.063,143.76,143.75,0.03]
[1742948722446,9.93490586,143.76,143.75,0.03]
[1742948727196,9.93490586,143.76,143.75,5.93]
[1742948729099,9.93490586,143.76,143.75,0.03]
[1742948729275,16.89090586,143.76,143.75,0.03]
[1742948734521,9.93490586,143.76,143.75,0.03]
[1742948734692,0.063,143.76,143.75,0.03]
[1742948735695,0.063,143.76,143.75,18.963972]
[1742948736896,0.063,143.76,143.75,25.920472]
[1742948737502,0.063,143.76,143.75,35.79237786]
[1742948737673,0.063,143.76,143.75,36.076701]
[1742948739695,0.063,143.76,143.75,117.270501]
[1742948746715,9.87190586,143.83,143.76,0.28432314]
[1742948747015,9.87190586,143.84,143.81,18.64964886]
[1742948747215,9.87190586,143.84,143.82,5.9]
[1742948748010,9.93490586,143.85,143.82,5.9]
[1742948748195,0.063,143.85,143.82,5.9]
[1742948748395,9.93490586,143.85,143.82,5.9]
[1742948748798,9.93490586,143.85,143.82,12.853]
[1742948749637,9.93490586,143.85,143.82,5.9]
[1742948754120,9.93490586,143.85,143.83,0.28432314]
[1742948755124,0.063,143.85,143.83,18.933972]
[1742948756025,0.063,143.85,143.83,35.75827786]
[1742948756726,0.063,143.85,143.83,18.933972]
[1742948757411,0.063,143.85,143.83,25.886572]
[1742948757813,0.063,143.85,143.83,18.933972]
[1742948765241,0.063,143.85,143.84,24.54964886]
[1742948771361,0.063,143.85,143.84,32.07039514]
[1742948771546,0.063,143.85,143.84,41.942301]
[1742948780147,0.063,143.85,143.84,43.33193724]
[1742948780367,0.063,143.85,143.84,124.52573724]
[1742948783963,0.063,143.91,143.86,19.21829514]
[1742948784167,0.063,143.91,143.89,19.21829514]
[1742948784357,0.063,143.91,143.9,6.46864628]
[1742948785448,0.063,143.91,143.9,24.833972]
[1742948792174,0.063,143.91,143.9,113.19829514]
[1742948792361,0.063,143.91,143.9,123.070201]
[1742948798993,0.063,143.91,143.9,115.83667786]
[1742948799286,0.063,143.91,143.9,123.070201]
[1742948801665,0.063,143.91,143.9,117.170201]
[1742948801864,0.063,143.91,143.9,123.070201]
[1742948803287,0.063,143.91,143.9,124.45910897]
[1742948803595,0.0001,143.91,143.9,132.21580897]
[1742948806492,0.063,143.99,143.95,0.14216157]
[1742948806702,0.063,143.99,143.98,29.090201]
[1742948808302,0.063,143.99,143.98,18.933972]
[1742948810293,9.93490586,143.99,143.98,0.28432314]
[1742948810694,0.063,143.99,143.98,0.28432314]
[1742948812408,0.063,143.99,143.98,0.56864628]
[1742948812899,0.063,143.99,143.98,7.51404628]
[1742948813404,0.063,143.99,143.98,117.166301]
[1742948813806,0.063,143.99,143.98,118.55475208]
[1742948813993,0.063,143.99,143.98,119.22736383]
[1742948815813,0.063,144.0,143.99,19.21829514]
[1742948815980,0.063,144.0,143.99,29.76281275]
[1742948817913,0.063,144.0,143.99,36.70771275]
[1742948819110,0.063,144.0,143.99,117.83841275]
[1742948820303,0.063,144.0,143.99,100.064672]
[1742948820506,0.063,144.0,143.99,105.964672]
[1742948820684,0.063,144.0,143.99,106.10683357]
[1742948821022,0.063,144.0,143.99,106.24899514]
[1742948821616,0.063,144.0,143.99,105.964672]
[1742948822508,0.063,144.0,143.99,113.19389514]
[1742948822707,0.063,144.0,143.99,123.73841275]
[1742948824419,0.063,144.0,143.99,106.24899514]
[1742948824717,0.063,144.0,143.99,106.10683357]
[1742948824891,0.063,144.0,143.99,106.24899514]
[1742948825516,0.063,144.0,143.99,113.19389514]
[1742948825908,0.063,144.0,143.99,123.73841275]
[1742948831020,0.063,144.0,143.99,117.83841275]
[1742948831206,0.063,144.0,143.99,123.73841275]
[1742948834313,0.03,144.06,144.04,0.28432314]
[1742948834518,0.03,144.06,144.05,6.46864628]
[1742948835223,0.03,144.06,144.05,24.833972]
[1742948836602,10.57451761,144.06,144.05,5.9]
[1742948838725,17.51601761,144.06,144.05,5.9]
[1742948838898,10.57451761,144.06,144.05,5.9]
[1742948839598,17.51601761,144.06,144.05,5.9]
[1742948839801,10.57451761,144.06,144.05,5.9]
[1742948841840,17.51601761,144.06,144.05,5.9]
[1742948842126,17.51601761,144.06,144.03,6.18432314]
[1742948842312,10.54451761,144.05,144.03,6.18432314]
[1742948843137,10.54451761,144.04,144.03,5.9]
[1742948845211,17.48701761,144.04,144.03,5.9]
[1742948852522,10.54451761,144.04,144.03,5.9]
[1742948852708,17.48701761,144.04,144.03,5.9]
[1742948854947,10.54451761,144.04,144.03,5.9]
[1742948856145,0.03,144.06,144.04,18.933972]
[1742948856319,10.57451761,144.06,144.04,18.933972]
[1742948857219,0.03,144.06,144.04,18.933972]
[1742948858145,0.03,144.06,144.04,25.876372]
[1742948859731,0.03,144.06,144.05,29.75970578]
[1742948859939,0.03,144.06,144.05,110.89040578]
[1742948860854,0.03,144.06,144.05,117.83240578]
[1742948862030,0.03,144.06,144.05,117.82610188]
[1742948862847,0.03,144.06,144.05,130.26330188]
[1742948863151,0.03,144.15,144.09,0.56864628]
[1742948863460,0.03,144.15,144.1,35.0847556]
[1742948863758,10.56510674,144.15,144.1,35.0847556]
[1742948863940,10.53510674,144.14,144.1,24.54964886]
[1742948864831,10.53510674,144.14,144.12,18.933972]
[1742948865034,0.03,144.15,144.12,18.933972]
[1742948865337,10.53510674,144.14,144.12,18.933972]
[1742948865525,10.53510674,144.13,144.11,0.14216157]
[1742948865728,10.53510674,144.13,144.11,18.933972]
[1742948866547,6.9672,144.15,144.11,18.933972]
[1742948866731,10.53510674,144.14,144.11,18.933972]
[1742948867247,0.03,144.15,144.12,0.28432314]
[1742948867450,10.53510674,144.14,144.11,18.933972]
[1742948867638,10.53510674,144.14,144.11,0.28432314]
[1742948867950,10.53510674,144.14,144.11,7.22332314]
[1742948868555,10.53510674,144.14,144.11,0.28432314]
[1742948871650,10.56510674,144.15,144.11,26.15699514]
[1742948871850,0.03,144.15,144.11,36.69210188]
[1742948872147,10.56510674,144.15,144.11,26.15699514]
[1742948873556,10.53510674,144.14,144.11,19.21829514]
[1742948874332,10.53510674,144.14,144.11,26.15739514]
[1742948876054,10.56510674,144.15,144.11,19.21829514]
[1742948876959,10.56510674,144.15,144.11,26.15729514]
[1742948881865,17.50250674,144.15,144.11,18.933972]